bitfinex-derivatives/quotes_ETHF0:USTF0_20260203
["timestamp","ask_amount","ask_price","bid_price","bid_amount"]
[1770102589041,2.39674707,2326.9,2326.4,0.21878695]
[1770102589335,2.39674707,2326.9,2326.1,1.94984161]
[1770102590136,2.39674707,2326.9,2326.4,0.21512]
[1770102590329,2.39674707,2326.9,2325.9,2.55325646]
[1770102590535,2.32088602,2326.7,2325.8,2.55325646]
[1770102590934,6.93670503,2326.6,2325.8,2.55325646]
[1770102591129,6.93670503,2326.6,2325.8,2.17204004]
[1770102591332,2.32088602,2326.6,2325.8,0.00398967]
[1770102591539,2.32968304,2326.4,2325.8,0.00398967]
[1770102592135,2.32968304,2326.2,2325.3,2.55325646]
[1770102592334,2.32968304,2326.2,2325.2,4.9404365]
[1770102592630,2.32968304,2326.2,2325.3,2.38718004]
[1770102593238,2.32968304,2326.0,2325.5,0.2152]
[1770102593439,2.33457185,2326.0,2325.5,0.2152]
[1770102594440,2.32968304,2326.3,2325.6,2.59811808]
[1770102594839,6.82188802,2326.3,2325.6,2.59811808]
[1770102595040,2.32968304,2326.2,2325.6,0.2152]
[1770102595543,2.32968304,2326.0,2325.6,0.21031119]
[1770102595740,2.32968304,2326.0,2325.3,2.38736418]
[1770102596142,2.32968304,2326.0,2325.6,0.2152]
[1770102597243,0.0042586,2326.2,2325.6,0.2152]
[1770102597540,2.32968304,2326.0,2325.6,0.2152]
[1770102598240,0.0042586,2326.2,2325.7,2.3850657]
[1770102598434,38.33374676,2326.6,2325.7,2.3850657]
[1770102598435,4.90346207,2326.6,2325.7,2.3850657]
[1770102598638,2.32968304,2326.6,2326.3,0.21513]
[1770102599232,2.32968304,2326.6,2325.7,2.3850657]
[1770102599446,2.33408997,2326.6,2325.7,2.3850657]
[1770102600142,2.33408997,2326.6,2326.3,0.21513]
[1770102600440,2.33408997,2326.6,2325.9,0.21517]
[1770102601443,2.33408997,2326.6,2325.3,0.0044461]
[1770102601634,2.32968304,2326.4,2325.4,0.21522]
[1770102601839,2.32968304,2326.3,2325.4,0.21522]
[1770102602139,2.32968304,2325.8,2324.9,0.21526]
[1770102602441,7.01848581,2325.7,2324.9,0.21526]
[1770102602636,2.32968304,2325.6,2324.9,0.21526]
[1770102602833,2.32968304,2325.6,2324.5,2.39578489]
[1770102603034,2.32968304,2325.4,2324.5,0.00511192]
[1770102603439,7.15730198,2325.3,2324.5,0.00511192]
[1770102603838,2.32968304,2325.2,2324.5,0.00511192]
[1770102604038,7.19283628,2325.2,2324.5,0.00511192]
[1770102604439,2.32968304,2325.2,2324.5,0.00511192]
[1770102604745,4.86315324,2325.1,2324.5,0.00511192]
[1770102604944,7.19283628,2325.1,2324.5,0.00511192]
[1770102607841,2.32968304,2325.4,2324.6,2.61107489]
[1770102608347,4.56953058,2325.3,2324.6,2.61107489]
[1770102608543,2.32968304,2325.7,2324.9,0.21525]
[1770102608947,6.89921362,2325.6,2324.9,0.21525]
[1770102609143,2.32968304,2325.5,2324.9,0.21525]
[1770102612051,2.32968304,2325.3,2324.5,0.00511192]
[1770102612348,2.32968304,2325.1,2324.5,0.00511192]
[1770102612753,2.32968304,2325.3,2324.5,0.00511192]
[1770102613248,2.32968304,2325.3,2324.9,0.21525]
[1770102613444,2.32968304,2325.3,2324.5,0.00511192]
[1770102614152,2.32968304,2325.3,2324.9,0.21525]
[1770102614353,2.32968304,2325.3,2324.5,0.00511192]
[1770102615251,2.32968304,2325.3,2324.9,0.21525]
[1770102615850,2.32968304,2325.8,2324.9,0.21525]
[1770102616150,7.06878457,2325.8,2324.9,0.21525]
[1770102616349,2.32968304,2325.7,2324.9,0.21525]
[1770102616750,2.32968304,2325.5,2324.9,0.21525]
[1770102617753,2.32968304,2325.7,2325.1,0.21524]
[1770102622763,2.32968304,2325.7,2324.6,4.88804313]
[1770102623058,2.43952254,2325.5,2324.5,2.34343565]
[1770102623451,4.50798992,2325.4,2324.8,0.21527]
[1770102623653,2.43952254,2325.5,2324.8,0.21527]
[1770102626454,2.43952254,2325.5,2324.9,0.21526]
[1770102626657,2.43952254,2325.5,2325.0,0.21525]
[1770102630868,2.56789959,2326.1,2325.5,0.2152]
[1770102631071,5.57889959,2326.2,2325.5,0.2152]
[1770102631366,2.56789959,2326.1,2325.5,0.2152]
[1770102631760,4.8810159,2326.0,2325.5,0.2152]
[1770102631963,4.8810159,2326.0,2325.0,2.55238032]
[1770102632163,2.56789959,2325.8,2325.0,0.21525]
[1770102632364,2.56789959,2325.8,2324.9,2.33832373]
[1770102632767,2.43952254,2325.7,2324.9,2.33832373]
[1770102633168,2.43952254,2325.7,2325.2,0.21523]
[1770102634069,2.43952254,2325.7,2324.9,2.33832373]
[1770102634070,5.00742213,2325.9,2325.3,0.21522]
[1770102635769,2.43952254,2325.7,2325.3,0.21522]
[1770102636470,2.56789959,2325.9,2325.3,0.21522]
[1770102636768,5.00742213,2325.9,2325.3,0.21522]
[1770102637069,2.43952254,2325.8,2325.3,0.21522]
[1770102637574,2.43952254,2325.8,2325.4,0.21521]
[1770102638072,2.56789959,2326.1,2325.2,2.33832373]
[1770102638275,2.56789959,2326.3,2325.4,2.33832373]
[1770102638769,4.65327463,2326.2,2325.4,2.33832373]
[1770102639171,4.65327463,2326.2,2325.7,0.21519]
[1770102640073,2.43952254,2326.1,2325.7,0.21519]
[1770102641874,2.43952254,2326.3,2325.7,0.21519]
[1770102642074,2.43952254,2326.3,2325.8,0.21517]
[1770102643772,2.43952254,2326.3,2325.3,2.55238032]
[1770102643974,2.43952254,2326.1,2325.3,2.55238032]
[1770102644171,2.43952254,2326.1,2325.2,4.89070405]
[1770102644373,2.43952254,2326.1,2325.3,4.89070405]
[1770102644873,2.43952254,2326.1,2325.6,0.21519]
[1770102650678,2.52974059,2325.9,2324.8,5.01690407]
[1770102650971,2.30662115,2325.7,2324.8,5.01690407]
[1770102652377,2.30662115,2325.7,2325.3,0.21522]
[1770102653578,2.30662115,2325.7,2324.8,2.55413624]
[1770102654178,2.30662115,2325.7,2325.3,0.21522]
[1770102655578,2.30662115,2325.7,2324.8,5.02534777]
[1770102655877,4.59141849,2325.6,2325.3,0.21522]
[1770102656077,2.30662115,2325.5,2324.8,2.55413624]
[1770102657180,2.30662115,2325.5,2325.3,0.21522]
[1770102658179,2.30662115,2325.5,2324.8,2.76939624]
[1770102658380,2.30662115,2325.3,2324.8,0.21526]
[1770102658679,2.30662115,2325.1,2324.8,0.21526]
[1770102659678,4.87878952,2325.5,2325.0,0.21525]
[1770102659882,2.30662115,2325.5,2325.0,2.68646153]
[1770102660085,2.30662115,2325.5,2325.0,0.21525]
[1770102660982,2.30662115,2325.5,2324.6,2.36516073]
[1770102661182,2.42092134,2325.3,2324.5,4.92440889]
[1770102661486,6.93288114,2325.5,2324.7,2.36516073]
[1770102661780,2.42092134,2325.5,2324.7,2.36516073]
[1770102662181,2.42092134,2325.5,2325.0,0.21525]
[1770102663682,2.42092134,2325.5,2325.1,0.21523]
[1770102663881,9.148,2325.7,2325.1,0.21523]
[1770102664087,11.56892134,2325.7,2325.1,0.21523]
[1770102664984,2.42092134,2325.6,2325.1,0.21523]
[1770102665592,7.3674671,2325.5,2324.7,2.36516073]
[1770102665988,2.42092134,2325.5,2324.7,2.36516073]
[1770102666589,11.56892134,2325.7,2325.2,0.21523]
[1770102666991,11.56892134,2325.7,2325.3,0.21522]
[1770102667187,2.42092134,2325.9,2325.3,0.21522]
[1770102668990,2.42092134,2325.8,2324.7,2.55413624]
[1770102669195,4.99308971,2325.5,2324.5,0.00511192]
[1770102669392,2.42092134,2325.3,2324.5,0.00511192]
[1770102669693,2.42092134,2325.1,2324.5,0.00511192]
[1770102670090,2.42092134,2324.9,2324.5,0.00511192]
[1770102670391,2.42442303,2324.9,2324.5,0.00511192]
[1770102671091,2.42092134,2324.7,2323.7,2.76950624]
[1770102671292,2.42092134,2324.7,2323.7,0.21537]
[1770102671491,2.42092134,2324.5,2323.8,0.21536]
[1770102671887,9.182,2324.8,2323.9,0.21535]
[1770102671888,4.53340842,2324.7,2323.9,0.21535]
[1770102672096,2.42092134,2324.7,2323.9,2.58051073]
[1770102672295,2.42092134,2324.7,2323.9,0.21535]
[1770102672496,2.42092134,2324.6,2323.9,0.21535]
[1770102672795,4.58714689,2324.5,2323.9,0.21535]
[1770102672996,4.58714689,2324.5,2324.0,2.58050073]
[1770102673196,9.182,2324.8,2324.2,2.58048073]
[1770102673389,2.42442303,2324.9,2324.2,2.58048073]
[1770102673796,4.81869369,2324.8,2324.2,2.58048073]
[1770102674097,4.81869369,2324.8,2324.2,0.21532]
[1770102674698,2.42442303,2324.9,2324.0,2.36516073]
[1770102674699,0.00350169,2324.9,2324.4,2.36516073]
[1770102674896,2.42092134,2325.3,2324.5,2.58046073]
[1770102675397,2.42092134,2325.1,2324.5,0.2153]
[1770102675799,7.00921577,2325.0,2324.5,0.2153]
[1770102676098,2.42495807,2325.0,2324.5,0.2153]
[1770102677601,2.42092134,2324.8,2324.0,0.21534]
[1770102678001,2.42092134,2324.6,2324.0,0.21534]
[1770102680903,2.4543113,2324.4,2324.0,0.21534]
[1770102681102,4.84898975,2324.5,2323.8,0.00327374]
[1770102681103,4.84898975,2324.5,2324.1,0.21533]
[1770102681305,2.4543113,2324.9,2324.2,0.21532]
[1770102681604,2.4543113,2324.9,2324.1,2.46710033]
[1770102681605,0.00403673,2325.0,2324.4,2.68241033]
[1770102682205,2.45834803,2325.0,2324.4,0.21531]
[1770102682603,2.45834803,2325.0,2324.5,0.2153]
[1770102682805,0.00403673,2325.0,2324.5,2.68240033]
[1770102683410,7.36986738,2324.9,2324.5,0.2153]
[1770102684210,2.4543113,2324.8,2324.5,0.2153]
[1770102685209,2.4543113,2324.9,2324.5,0.2153]
[1770102685409,2.45834803,2325.0,2324.5,0.2153]
[1770102686614,2.45834803,2325.0,2324.2,2.46710033]
[1770102686816,7.0151904,2324.9,2324.2,2.46710033]
[1770102687010,2.4543113,2324.8,2323.9,2.55379081]
[1770102687215,2.4543113,2324.8,2324.3,0.21532]
[1770102689720,0.00403673,2325.0,2324.4,0.21531]
[1770102690515,0.00403673,2325.0,2324.5,2.68240033]
[1770102691121,0.00403673,2325.0,2324.5,0.2153]
[1770102696625,0.00403673,2325.0,2324.5,2.68240033]
[1770102697429,2.45834803,2325.0,2324.0,2.55379081]
[1770102697626,2.4543113,2324.8,2324.0,2.55379081]
[1770102698020,2.4543113,2324.8,2324.1,2.46710033]
[1770102698226,0.00403673,2325.0,2324.5,2.46710033]
[1770102699227,0.00403673,2325.0,2324.6,2.68239033]
[1770102700126,2.5688665,2325.1,2324.9,0.21526]
[1770102700322,2.5688665,2325.4,2325.1,0.21524]
[1770102700529,2.5688665,2325.6,2325.1,2.68234033]
[1770102700825,2.5688665,2325.6,2325.1,0.21524]
[1770102700826,4.72583816,2325.5,2325.1,0.21524]
[1770102701030,7.29470466,2325.5,2325.1,0.21524]
[1770102701229,7.29965501,2325.5,2325.1,0.21524]
[1770102702128,4.73078851,2325.5,2325.1,0.21524]
[1770102703431,2.4543113,2325.4,2324.6,2.46710033]
[1770102703631,2.4000658,2325.3,2324.6,0.21529]
[1770102703831,6.96034837,2325.3,2324.6,0.21529]
[1770102704028,4.56028257,2325.3,2324.6,2.46710033]
[1770102704229,4.56028257,2325.3,2324.9,0.21526]
[1770102704731,2.57381685,2325.5,2324.9,2.68236033]
[1770102704928,2.57381685,2325.5,2324.9,0.21526]
[1770102705232,5.01802434,2325.5,2324.9,0.21526]
[1770102705534,2.57381685,2325.5,2325.0,2.68235033]
[1770102706535,2.57381685,2325.5,2325.0,0.21525]
[1770102706932,5.0018492,2325.5,2325.0,0.21525]
[1770102707536,7.72501175,2326.9,2325.1,11.52799443]
[1770102707828,12.06862805,2326.9,2326.6,0.2151]
[1770102708033,12.9008,2326.9,2326.8,6.37835114]
[1770102708234,12.9008,2326.9,2326.6,6.37835114]
[1770102708235,47.7828273,2326.9,2326.6,6.37835114]
[1770102708437,47.7863785,2326.9,2326.6,6.38361215]
[1770102708634,47.7863785,2326.9,2326.8,1.32529451]
[1770102708937,47.7863785,2326.9,2326.7,3.81674994]
[1770102709135,47.7863785,2326.9,2326.8,2.54041795]
[1770102709336,47.7863785,2326.9,2326.8,0.46255835]
[1770102709931,34.8855785,2326.9,2326.5,0.14498493]
[1770102710136,34.8855785,2326.9,2325.8,7.67749888]
[1770102710137,12.9008,2326.6,2325.9,2.46710033]
[1770102710344,41.38932142,2326.9,2325.9,2.46710033]
[1770102710539,46.03439688,2326.9,2326.0,2.36949898]
[1770102710738,4.51495506,2326.8,2326.0,2.36949898]
[1770102710939,4.51495506,2326.8,2326.1,0.21515]
[1770102711137,4.51495506,2326.8,2326.1,2.58464898]
[1770102711333,17.41575506,2326.8,2326.2,0.21514]
[1770102711538,34.8820273,2326.7,2326.4,2.34468401]
[1770102711739,34.8820273,2326.7,2326.4,2.55980401]
[1770102712636,9.3495512,2326.9,2326.4,2.55980401]
[1770102712834,34.8820273,2326.8,2326.4,2.55980401]
[1770102715039,47.7828273,2326.8,2326.4,2.55980401]
[1770102715338,9.3495512,2326.9,2326.4,2.55980401]
[1770102715541,44.2315785,2326.9,2326.4,2.55980401]
[1770102715740,57.1323785,2326.9,2326.4,2.55980401]
[1770102716037,12.9008,2326.6,2326.1,2.34468401]
[1770102716243,19.02734481,2326.8,2326.4,0.21511]
[1770102716438,3.011,2329.0,2327.3,2.7260444]
[1770102716643,12.9008,2328.7,2327.3,2.7260444]
[1770102716840,2.66660379,2329.5,2327.5,2.34468401]
[1770102716841,4.86133244,2327.8,2327.5,2.34468401]
[1770102717042,3.011,2328.5,2327.7,2.55968401]
[1770102717241,2.523,2328.4,2327.7,2.55968401]
[1770102717537,12.9008,2329.1,2328.2,0.21495]
[1770102717737,9.42,2329.0,2328.4,0.21493]
[1770102717938,12.9008,2328.9,2328.4,0.21493]
[1770102718139,12.9008,2328.7,2328.4,0.21493]
[1770102718341,13.66,2329.0,2327.9,2.34468401]
[1770102718342,12.9008,2328.5,2327.9,2.34468401]
[1770102718539,4.68061945,2328.6,2327.9,2.34468401]
[1770102718735,0.00406072,2328.5,2327.9,2.34468401]
[1770102718940,9.16906072,2328.5,2327.9,2.34468401]
[1770102719138,9.16906072,2328.5,2328.4,0.21493]
[1770102719340,22.01538261,2328.5,2327.9,2.34468401]
[1770102719538,8.64227261,2328.5,2327.9,2.34468401]
[1770102719942,8.20145261,2328.5,2327.9,2.34468401]
[1770102720248,8.2060948,2328.5,2328.4,0.21493]
[1770102720846,21.1068948,2328.5,2328.4,0.21493]
[1770102721148,21.1068948,2328.5,2327.9,7.35704107]
[1770102721343,21.1068948,2328.5,2328.0,5.01235706]
[1770102721545,2.36995627,2328.4,2327.8,5.48205694]
[1770102721746,12.9008,2327.9,2327.7,0.00426961]
[1770102721939,21.5398,2327.8,2327.3,0.21504]
[1770102722140,8.639,2327.7,2327.3,0.21504]
[1770102722547,0.00464219,2328.5,2327.7,0.215]
[1770102722748,5.53,2328.4,2327.7,0.215]
[1770102722943,11.33377108,2328.3,2327.7,2.75809515]
[1770102723148,5.104,2328.2,2327.2,5.18860298]
[1770102723348,5.104,2328.2,2327.3,5.18860298]
[1770102723548,5.104,2328.2,2327.7,0.215]
[1770102723849,3.371,2328.1,2327.7,0.215]
[1770102724249,10.72468593,2328.1,2327.7,0.21936168]
[1770102725346,7.35368593,2328.1,2327.8,0.21499]
[1770102725554,10.67068593,2328.1,2327.8,0.21499]
[1770102725753,7.35368593,2328.0,2327.8,0.21499]
[1770102725951,3.317,2328.1,2327.8,0.21499]
[1770102726249,6.44598669,2328.0,2327.7,0.00436168]
[1770102726449,9.28468669,2328.1,2327.8,2.55967401]
[1770102726655,2.19e-06,2328.5,2328.1,2.34468401]
[1770102726854,2.521,2328.6,2328.1,2.34468401]
[1770102727554,2.521,2328.6,2328.2,2.34468401]
[1770102727850,2.22572742,2329.9,2328.9,2.34468401]
[1770102728052,0.00539434,2329.9,2329.3,0.21485]
[1770102728250,4.6829062,2329.8,2329.3,0.21485]
[1770102728549,2.0200068,2329.7,2328.9,2.34468401]
[1770102728850,2.811,2329.6,2328.7,2.34468401]
[1770102729154,4.79720799,2329.5,2328.7,2.34468401]
[1770102729353,4.79720799,2329.5,2329.2,2.34468401]
[1770102729652,1.9470562,2329.6,2328.5,0.71647962]
[1770102729949,0.06048755,2329.5,2328.6,0.21492]
[1770102730350,0.06048755,2329.4,2328.6,0.21492]
[1770102730656,11.26355491,2329.3,2328.6,0.15443245]
[1770102730861,11.26355491,2329.3,2328.1,0.21497]
[1770102731050,6.498,2329.3,2328.1,0.21497]
[1770102731354,4.76555491,2329.2,2328.4,0.21493]
[1770102731549,5.528,2329.1,2328.4,0.21493]
[1770102731952,4.76555491,2329.0,2328.4,0.21493]
[1770102732250,4.76555491,2329.0,2328.6,2.74273756]
[1770102732453,3.008,2329.5,2328.8,2.74271756]
[1770102732656,5.528,2329.5,2328.8,2.74271756]
[1770102732852,4.64651129,2329.4,2329.0,2.52781756]
[1770102733054,0.00539434,2329.9,2329.2,2.52781756]
[1770102733352,2.52539434,2329.9,2329.2,2.52781756]
[1770102733551,4.73476935,2329.8,2328.8,2.52781756]
[1770102733757,0.02391105,2329.7,2328.8,0.2149]
[1770102734256,4.73476935,2329.6,2328.8,0.2149]
[1770102734757,5.528,2329.5,2328.8,2.74437973]
[1770102735257,4.70424679,2329.4,2328.8,5.32318931]
[1770102735456,4.70424679,2329.4,2328.8,0.2149]
[1770102735955,4.70424679,2329.4,2328.8,5.32318931]
[1770102736156,0.03518306,2329.3,2328.6,3.80216342]
[1770102736355,4.70424679,2329.4,2328.3,2.53977308]
[1770102736550,4.89096904,2329.2,2328.3,2.53977308]
[1770102736748,2.52,2329.1,2328.3,2.75471308]
[1770102737056,4.89096904,2329.0,2328.3,2.75471308]
[1770102738953,8.59796904,2329.0,2328.3,2.75471308]
[1770102740160,0.21491,2328.7,2327.1,2.54105259]
[1770102740452,2.66660379,2328.8,2327.0,0.21507]
[1770102740453,2.03179764,2328.5,2327.0,0.21507]
[1770102740656,2.03179764,2328.3,2327.0,0.21507]
[1770102741157,2.03179764,2328.1,2327.0,0.21884729]
[1770102741353,2.03655326,2328.1,2327.0,0.21884729]
[1770102741557,2.03179764,2327.9,2327.0,0.21884729]
[1770102741759,11.44579764,2327.8,2327.0,0.21884729]
[1770102741959,16.19576303,2327.8,2327.0,0.21884729]
[1770102742158,2.0307558,2327.7,2325.9,2.66660379]
[1770102742355,0.00475562,2328.1,2327.1,8.08882042]
[1770102742559,7.5577558,2328.6,2327.7,2.5036644]
[1770102742855,4.93744365,2328.5,2328.3,2.5036644]
[1770102743061,2.4345954,2328.5,2328.2,0.21495]
[1770102743260,2.0307558,2329.1,2328.4,4.2952]
[1770102743459,0.0039962,2329.1,2328.4,0.00515947]
[1770102743661,3.34644254,2329.0,2328.4,0.00515947]
[1770102744264,2.01348351,2328.9,2328.2,0.21495]
[1770102744457,2.01348351,2328.9,2327.9,2.5036644]
[1770102744664,2.00832404,2328.7,2327.7,2.7186644]
[1770102745168,3.48802613,2328.6,2327.7,2.72263366]
[1770102745762,2.00832404,2328.5,2327.7,0.21896926]
[1770102746155,6.76107902,2328.4,2327.7,0.21896926]
[1770102746359,3.008,2328.3,2326.8,2.5036644]
[1770102746558,2.03185769,2328.2,2326.8,2.7187544]
[1770102746755,2.03185769,2328.1,2326.9,2.7187444]
[1770102747163,2.03185769,2327.9,2326.9,2.7187444]
[1770102747459,2.03185769,2327.7,2326.9,0.21868734]
[1770102747662,2.03185769,2327.7,2326.1,0.21515]
[1770102747864,1.81317035,2327.5,2326.1,0.21515]
[1770102748366,1.76456752,2327.3,2326.1,0.21515]
[1770102748664,1.76456752,2327.1,2326.1,0.00364175]
[1770102748960,4.48950509,2327.0,2326.1,2.5036644]
[1770102749164,4.48950509,2327.0,2326.2,2.7188044]
[1770102749467,4.48950509,2327.1,2326.2,2.5036644]
[1770102749658,1.76435238,2327.3,2326.4,2.5036644]
[1770102749858,4.9640645,2327.0,2326.4,2.5036644]
[1770102750061,4.9640645,2327.0,2326.4,2.50845022]
[1770102750363,1.76435238,2327.3,2326.6,4.2952]
[1770102750563,1.76435238,2327.3,2326.5,4.2952]
[1770102750764,4.75519613,2327.2,2326.5,4.2952]
[1770102751267,4.75519613,2327.2,2326.6,4.2952]
[1770102751468,6.54474665,2327.2,2326.4,0.21990582]
[1770102753470,4.75519613,2327.2,2326.5,4.2952]
[1770102753672,1.97761031,2327.1,2326.4,0.21990582]
[1770102753869,1.97761031,2327.1,2326.0,2.5036644]
[1770102754067,0.00342661,2327.3,2326.0,2.5036644]
[1770102754068,6.26197487,2327.0,2326.0,2.5036644]
[1770102754570,1.55745699,2327.0,2326.1,4.2952]
[1770102754771,0.00342661,2327.3,2325.6,2.5036644]
[1770102754772,1.55745699,2326.8,2325.6,2.5036644]
[1770102754966,1.55745699,2326.8,2325.8,2.5036644]
[1770102755166,7.43225804,2327.0,2326.1,0.21515]
[1770102755370,4.91125804,2326.7,2326.1,2.7188144]
[1770102755873,4.47541324,2326.9,2326.2,4.2952]
[1770102756173,1.61833402,2326.9,2326.1,0.22028666]
[1770102756373,4.47541324,2326.8,2326.2,0.21514]
[1770102756570,0.00342661,2327.3,2326.4,2.5036644]
[1770102756772,0.00342661,2327.3,2326.4,6.7988644]
[1770102756773,4.58560334,2327.0,2326.4,6.7988644]
[1770102756973,0.00342661,2327.3,2326.5,6.7988644]
[1770102757275,4.58560334,2327.1,2326.5,6.7988644]
[1770102757475,4.58560334,2327.1,2326.6,4.2952]
[1770102757666,0.00342661,2327.3,2326.7,4.2952]
[1770102757973,4.94780131,2327.0,2326.6,4.2952]
[1770102758170,4.94780131,2327.1,2326.6,4.2952]
[1770102758374,0.00342661,2327.3,2326.7,4.2952]
[1770102758676,4.56434575,2327.0,2326.6,4.2952]
[1770102758876,4.56434575,2327.1,2326.6,4.2952]
[1770102759077,0.00342661,2327.3,2326.7,4.2952]
[1770102759274,0.07484582,2326.6,2326.1,2.54618925]
[1770102759477,6.83884582,2326.9,2326.1,2.54618925]
[1770102759774,0.788052,2326.8,2326.3,2.54105259]
[1770102760173,4.63069818,2326.9,2326.3,2.54105259]
[1770102760677,6.60642661,2327.3,2326.3,2.75618259]
[1770102760876,4.52418832,2326.8,2326.3,2.75618259]
[1770102761269,4.52418832,2326.9,2326.3,2.75618259]
[1770102761270,8.93393985,2327.3,2326.3,2.75618259]
[1770102761469,2.40235906,2327.2,2326.3,2.75618259]
[1770102761677,4.79967098,2326.9,2326.3,2.75618259]
[1770102762079,2.32751324,2327.2,2326.3,2.75618259]
[1770102762278,4.79967098,2326.8,2326.3,2.75618259]
[1770102762479,4.79967098,2326.9,2326.3,2.75618259]
[1770102762882,2.32751324,2327.2,2326.3,2.75618259]
[1770102763081,4.78478836,2326.8,2326.3,2.75618259]
[1770102763278,4.78478836,2326.9,2326.3,2.75618259]
[1770102763674,2.32751324,2327.2,2326.3,2.75618259]
[1770102763877,4.87571117,2326.8,2326.3,2.75618259]
[1770102764182,4.87571117,2326.9,2326.3,2.75618259]
[1770102764480,0.00342661,2327.3,2326.4,2.5036644]
[1770102764780,4.80139822,2327.2,2326.4,2.5036644]
[1770102765783,0.07484582,2327.1,2326.4,2.5036644]
[1770102766282,4.97728539,2327.0,2326.5,0.21511]
[1770102767082,0.07484582,2326.9,2326.5,0.21511]
[1770102767384,0.07484582,2327.1,2326.5,0.21511]
[1770102767781,4.6513548,2327.0,2326.5,0.21511]
[1770102767977,4.57650898,2327.0,2326.5,0.21511]
[1770102768284,0.07484582,2326.9,2326.5,0.21511]
[1770102768483,6.90402222,2327.0,2326.5,0.21511]
[1770102768684,4.58656523,2326.8,2326.5,0.21511]
[1770102768983,4.66141105,2326.9,2326.1,2.50880106]
[1770102769184,2.32751324,2327.2,2326.1,2.50880106]
[1770102769385,4.58656523,2326.8,2326.1,2.50880106]
[1770102769885,2.32751324,2327.2,2326.1,2.50880106]
[1770102770082,2.40235906,2327.2,2326.1,2.50880106]
[1770102770282,4.96829453,2327.1,2326.5,0.21511]
[1770102770680,4.96829453,2327.1,2326.5,2.69283722]
[1770102770880,5.04314035,2327.1,2326.5,2.69283722]
[1770102771086,0.07484582,2327.1,2326.5,2.69283722]
[1770102771285,4.6318832,2327.0,2326.5,2.69283722]
[1770102772990,4.6318832,2327.0,2326.5,0.21511]
[1770102773491,4.70672902,2327.0,2326.5,0.21511]
[1770102773691,0.07484582,2326.8,2326.5,0.21511]
[1770102774094,0.07484582,2326.7,2326.5,0.21511]
[1770102774294,4.82608872,2326.9,2326.5,0.21511]
[1770102774491,2.34133204,2327.3,2326.5,2.61455766]
[1770102774492,4.82608872,2327.2,2326.5,2.61455766]
[1770102774796,0.07484582,2327.2,2326.5,2.61455766]
[1770102774997,4.99912345,2327.2,2326.5,2.61455766]
[1770102775495,0.07484582,2327.1,2326.5,0.21511]
[1770102775692,2.41275125,2326.9,2326.5,0.21511]
[1770102776096,0.07484582,2326.8,2326.5,0.21511]
[1770102776695,0.07484582,2326.7,2326.5,0.21511]
[1770102777198,0.07484582,2326.7,2326.5,6.7807473]
[1770102777794,0.00342661,2327.3,2326.1,0.00513666]
[1770102777795,7.29055164,2326.6,2326.1,0.00513666]
[1770102777997,4.95264621,2326.6,2326.1,6.63115914]
[1770102778197,7.29055164,2326.8,2326.1,6.63115914]
[1770102778395,2.33790543,2326.8,2326.1,6.63115914]
[1770102778801,7.27182893,2326.7,2326.1,6.63115914]
[1770102779201,2.33790543,2326.7,2326.0,0.21516]
[1770102779498,12.197,2326.9,2325.6,2.39944766]
[1770102779499,4.9339235,2326.6,2325.6,2.39944766]
[1770102779701,4.9339235,2326.6,2325.7,3.02620338]
[1770102779902,4.9339235,2326.6,2325.4,0.21522]
[1770102779903,5.15394524,2326.6,2325.5,5.56760037]
[1770102780100,5.15394524,2326.7,2325.6,2.54139699]
[1770102780304,4.63153611,2326.5,2325.6,2.54139699]
[1770102780599,2.43804646,2326.6,2326.0,2.54139699]
[1770102780905,4.53045195,2326.7,2326.0,2.54139699]
[1770102781105,4.53045195,2326.7,2326.2,2.75653699]
[1770102781305,3.01,2327.2,2326.2,2.75653699]
[1770102781604,4.83544676,2326.6,2326.3,3.02620338]
[1770102781805,4.83544676,2326.6,2325.6,0.21519]
[1770102782005,38.64792016,2326.6,2325.6,2.75658699]
[1770102782209,4.83544676,2326.5,2325.6,2.75658699]
[1770102782606,9.365,2326.5,2325.6,0.21519]
[1770102782909,4.85968756,2326.4,2325.6,0.21519]
[1770102783305,4.85968756,2326.4,2325.6,2.54139699]
[1770102783611,0.00342661,2327.3,2326.4,2.54139699]
[1770102783812,0.00342661,2327.3,2326.4,2.75651699]
[1770102784013,0.00342661,2327.3,2326.7,2.54139699]
[1770102784014,4.97589994,2327.1,2326.7,2.54139699]
[1770102784209,0.00342661,2327.3,2326.4,2.54139699]
[1770102784414,4.97589994,2327.2,2326.4,2.54139699]
[1770102784611,0.00342661,2327.3,2326.4,2.54139699]
[1770102784914,4.48496559,2327.2,2326.4,2.54139699]
[1770102785814,4.48496559,2327.2,2326.1,2.54139699]
[1770102786013,9.374,2327.1,2326.1,2.54139699]
[1770102786314,4.60806172,2327.0,2326.1,2.54139699]
[1770102787210,43.8018654,2328.2,2326.7,2.54139699]
[1770102787510,4.73368417,2327.5,2326.9,2.75646699]
[1770102787913,38.64792016,2329.2,2327.5,2.54139699]
[1770102788107,41.65792016,2329.7,2328.2,2.54139699]
[1770102788313,3.01400959,2329.7,2328.6,2.54139699]
[1770102788514,3.01400959,2329.7,2328.8,2.54139699]
[1770102788709,4.623,2330.4,2329.2,2.75625699]
[1770102789012,5.5906098,2331.0,2329.2,2.75625699]
[1770102789013,3.407,2330.5,2329.2,2.75625699]
[1770102789419,40.8,2330.9,2329.4,2.54139699]
[1770102789619,4.91004349,2330.4,2329.8,2.54139699]
[1770102789810,0.00431951,2330.4,2329.8,2.54139699]
[1770102790015,4.04032377,2330.4,2329.8,2.54139699]
[1770102790216,4.49630017,2330.3,2329.8,2.54139699]
[1770102790512,0.00431951,2330.4,2329.8,2.54139699]
[1770102791212,4.57759288,2330.3,2329.5,2.54139699]
[1770102791412,0.00431951,2330.4,2329.5,2.75623699]
[1770102791916,4.84474655,2330.3,2329.5,2.75623699]
[1770102792719,1.49460727,2330.2,2329.5,0.21484]
[1770102793218,4.62264091,2330.1,2329.5,0.21484]
[1770102793418,6.96054634,2330.1,2329.2,2.39944766]
[1770102793617,2.33790543,2330.0,2328.8,2.39944766]
[1770102794111,2.33790543,2330.0,2328.9,2.39944766]
[1770102794320,7.07682228,2329.9,2328.9,2.39944766]
[1770102794816,8.08393752,2330.0,2328.9,2.39944766]
[1770102795016,4.60993752,2329.8,2328.9,2.39944766]
[1770102795317,4.60993752,2329.9,2328.9,2.61433766]
[1770102795517,5.141,2330.1,2328.9,2.61433766]
[1770102795816,4.50436422,2330.0,2328.9,2.61433766]
[1770102796018,5.141,2330.1,2328.9,2.61433766]
[1770102796214,3.825,2330.1,2328.9,2.61433766]
[1770102796415,3.825,2330.1,2328.6,2.66282182]
[1770102796416,4.50436422,2330.0,2329.1,2.39944766]
[1770102796717,4.50436422,2330.0,2329.1,2.61431766]